Cogmind - Beta 17 @@@ ROGUE MODE // 2026.06.27 @ 13:03:46 Player: Singularius Result: Destroyed by 94-3M3(E) with Barrage Gun Performance ------------- Evolutions (0) 0 Regions Visited (4) 800 Robots Destroyed (34) 170 Value Destroyed (941) 941 Prototype IDs (6) 120 Alien Tech Used (0) 0 Bonus (7160) 7160 TOTAL SCORE: 9191 Bonus ------- Follower Combat Kills 1417 Prayed to X0-1V1 5000 Major X0-1V1 Interference 750 Friendly Fire -7 Cogmind --------- Core Integrity 0/500 Matter 300/300 Energy 90/100 System Corruption 5% Temperature Cool (6) Movement Core (50) Location -9/Scraptown Parts ------- > --- POWER (1) -------- (None) > --- PROPULSION (2) --- (None) > --- UTILITY (2) ------ X0-1V1's Piety Tracker > --- WEAPON (3) ------- Mace > --- INVENTORY (5) ---- Seismic Detector Makeshift Light Armor Plating Tractor Beam Field Recycling Unit (0) Ripteeth Peak State ------------ > --- POWER ------------ Light Ion Engine > --- PROPULSION ------- Light Treads Medium Treads > --- UTILITY ---------- Large Storage Unit X0-1V1's Piety Tracker > --- WEAPON ----------- Shock Rifle Assault Rifle Heavy Assault Rifle > --- INVENTORY -------- Light Treads Light Treads Light Treads Seismic Detector Improved Targeting Computer Makeshift Light Armor Plating Tractor Beam Field Recycling Unit Powered Hammer Ripteeth Ripteeth [Rating: 28] Favorites ----------- Power Ion Engine Engine Ion Engine Propulsion Light Treads Treads Light Treads Leg Overtuned Titanium Leg Wheel Wheel Flight Unit VTOL Module Utility Large Storage Unit Device X0-1V1's Piety Tracker Storage Large Storage Unit Weapon Battle Cannon Energy Gun EM Pulse Gun Ballistic Gun Light Assault Rifle Ballistic Cannon Battle Cannon Launcher Rocket Launcher Impact Weapon Mace Build | -11 -10 -10 -9 -9 ------- Run | Yrd Mat Sub Rec Scr Slots Evolved . | . . . . . Power . | . . . . . Propulsion . | . . . . . Utility . | . . . . . Weapon . | . . . . . Parts Attached 40 | 7 5 4 7 17 Power 5 | 1 . . 2 2 Engine 5 | 1 . . 2 2 Core . | . . . . . Reactor . | . . . . . Propulsion 17 | 2 . 2 2 11 Treads 10 | 2 . . 2 6 Leg 3 | . . . . 3 Wheel 2 | . . . . 2 Hover . | . . . . . Flight 2 | . . 2 . . Utility 6 | 2 3 . . 1 Device 4 | 1 2 . . 1 Storage 2 | 1 1 . . . Processor . | . . . . . Hackware . | . . . . . Protection . | . . . . . Artifact . | . . . . . Weapon 12 | 2 2 2 3 3 Energy Gun 1 | 1 . . . . Energy Cannon . | . . . . . Ballistic Gun 5 | 1 1 . 2 1 Ballistic Cannon 2 | . . 2 . . Launcher 3 | . 1 . 1 1 Special Weapon . | . . . . . Impact Weapon 1 | . . . . 1 Slashing Weapon . | . . . . . Piercing Weapon . | . . . . . Special Melee Weapon . | . . . . . Unidentified Prototypes 1 | . 1 . . . Corrupted Parts 1 | . . . . 1 System Corruption 5 | . . . . 5 Parts Lost 17 | . . 3 . 14 Power 4 | . . 1 . 3 Propulsion 8 | . . 1 . 7 Utility 2 | . . . . 2 Weapon 3 | . . 1 . 2 Highest Loss Streak 8 | . . 3 . 8 To Critical Strikes 2 | . . . . 2 Average Backups 12 | 2 10 14 14 13 Power 1 | . 1 2 1 . Propulsion 5 | 1 4 6 5 4 Utility 3 | . 1 2 4 4 Weapon 3 | . 2 3 3 3 Tool/Special . | . . . . . Unused Backups 12 | . . 3 1 8 Power . | . . . . . Propulsion 3 | . . 3 . . Utility 4 | . . . . 4 Weapon 5 | . . . 1 4 Tool/Special . | . . . . . Average Slot Usage (%) 91 | . 99 99 99 63 Engine 12 | . 14 13 12 9 Treads 24 | . 28 21 25 21 Flight 1 | . . 6 . . Device 12 | . 13 14 12 11 Storage 12 | . 14 14 12 11 Energy Gun 4 | . 13 . . 2 Ballistic Gun 14 | . 14 13 24 . Ballistic Cannon 6 | . . 14 12 . Peak Build Rating 28 | 7 20 24 26 28 Average Rating 18 | 5 7 21 25 22 On Entrance 14 | . 7 20 19 25 Avg Prop Armor Cover (%) 16 | . . . . 16 Naked Turns . | . . . . . Heaviest Build 36 | 14 29 32 36 36 Greatest Support 48 | 40 40 40 43 48 Greatest Overweight (x) 6 | . . 3 . 6 Average Overweight (x) . | . . . . . Largest Inventory Capacity 15 | 8 15 15 15 15 Average Capacity 14 | 7 12 15 15 14 Most Carried 15 | 4 15 15 15 15 Average Carried 12 | 2 10 14 14 13 Final Capacity 15 | 8 15 15 15 5 Final Carried 15 | 4 15 14 15 5 Class Distribution -------------------- 58% | Mutant 14% | Commander-Gunner 13% | Gunner 13% | Commander-Mutant Dominant Class ---------------- Mutant | -10/Materials Mutant | -10/Subcaves Commander-Gunner | -9/Recycling Commander-Mutant | -9/Scraptown Resources | -11 -10 -10 -9 -9 ----------- Run | Yrd Mat Sub Rec Scr Matter Collected 1352 | 202 160 160 389 441 Remotely . | . . . . . Salvage Created 1402 | 45 301 201 404 451 Parts 84 | 5 17 18 17 27 Haulers Intercepted . | . . . . . Recyclers Shooed 1 | . . . 1 . Parts Field Recycled . | . . . . . Retrieved Matter . | . . . . . Parts Self-Destructed 18 | . . 18 . . Prevented . | . . . . . Parts Restored . | . . . . . Kills | -11 -10 -10 -9 -9 ------- Run | Yrd Mat Sub Rec Scr Combat Hostiles Destroyed 26 | . 10 5 3 8 Melee 1 | . . . . 1 Guns 6 | . 4 . 2 . Cannons 6 | . . 5 1 . AOE 13 | . 6 . . 7 Classes Destroyed 10 | 1 3 1 2 3 Worker 1 | . . . 1 . Tunneler 2 | 2 . . . . Recycler 4 | . 1 . 3 . Swarmer 6 | . 6 . . . Grunt 8 | . 4 3 1 . Sentry 3 | . . . 3 . Subdweller 2 | . . 2 . . Bolteater 1 | . . . . 1 Guru 1 | . . . . 1 Scrapper 6 | . . . . 6 Best Kill Streak 4 | 2 4 4 2 3 Combat Bots Only 4 | . 3 4 1 3 Max Kills in Single Turn 3 | 1 3 1 2 2 Gunslinging . | . . . . . Exploded 3 | . 3 . . 2 Melee 1 | . . . . 1 Uniques/NPCs Destroyed 1 | . . . . 1 Triborg (-9/Scraptown) Combat | -11 -10 -10 -9 -9 -------- Run | Yrd Mat Sub Rec Scr Hostile Shots Fired 322 | . 33 81 8 200 Missed 98 | . 10 28 1 59 Hits 224 | . 23 53 7 141 Melee 52 | . . . . 52 Projectile 172 | . 23 53 7 89 AOE 1 | . . 1 . . Critical Strikes 7 | . 1 . . 6 Damage Taken 3235 | 8 413 495 97 2222 Core 806 | 8 71 49 . 678 Absorbed by Shields . | . . . . . Core Remaining (%) 96 | 96 . . . . Volleys Fired 73 | 2 19 12 11 29 Largest 3 | 2 2 2 3 2 Hottest 83 | 60 60 66 76 83 Shots Fired 132 | 4 36 24 33 35 Gun 82 | 4 34 10 22 12 Cannon 24 | . . 14 10 . Launcher 26 | . 2 . 1 23 Special . | . . . . . Kinetic 85 | 2 17 24 32 10 Thermal . | . . . . . Explosive 26 | . 2 . 1 23 Electromagnetic 21 | 2 17 . . 2 Robot Hit Streak 13 | 3 5 5 13 9 Robot Miss Streak 2 | . 1 2 1 2 Penetration Max . | . . . . . Secondary Targets . | . . . . . Shots Hit Robots 90 | 3 25 14 22 26 Core Hits 69 | 2 17 7 13 30 Critical Kills . | . . . . . Critical Parts Destroyed 1 | . . . . 1 Critical Strikes 3 | . . 2 . 1 Blast 2 | . . 2 . . Smash 1 | . . . . 1 Melee Attacks 5 | . . . . 5 Impact 5 | . . . . 5 Slashing . | . . . . . Piercing . | . . . . . Sneak Attacks . | . . . . . Combat Hostiles . | . . . . . Follow-up Attacks . | . . . . . Damage Inflicted 2650 | 60 620 241 369 1360 Guns 681 | 27 254 38 247 115 Cannons 320 | . . 203 117 . Explosions 1524 | 33 366 . 5 1120 Melee 125 | . . . . 125 Ramming . | . . . . . Kinetic 797 | . 91 241 364 101 Thermal 33 | 33 . . . . Explosive 1491 | . 366 . 5 1120 Electromagnetic 204 | 27 163 . . 14 Impact 125 | . . . . 125 Slashing . | . . . . . Piercing . | . . . . . Highest Corruption 5 | . . . . 5 Average Corruption 5 | . . . . 5 Corruption Purged . | . . . . . Corruption Blocked . | . . . . . Effects 2 | . . . . 2 Matter Fused 1 | . . . . 1 Data Loss (major) 1 | . . . . 1 Overload Shots . | . . . . . Overflow Damage 28 | . . . . 28 Projectiles . | . . . . . Explosions . | . . . . . Melee 28 | . . . . 28 Knockbacks . | . . . . . Impact . | . . . . . Kinetic . | . . . . . Secondary . | . . . . . Self-Inflicted Damage 139 | 8 131 . . . Shots 4 | 1 3 . . . Rammed . | . . . . . Targets Rammed . | . . . . . Kicked . | . . . . . Crushed . | . . . . . Highest Temperature 166 | 32 130 166 39 33 Average Temperature 44 | 19 69 122 16 16 Received Heat Transfer 646 | . 162 201 27 256 Siege Activations . | . . . . . Martial Activations . | . . . . . Shielding Activations . | . . . . . Robots Disrupted . | . . . . . Combat Hostiles . | . . . . . Robots Corrupted . | . . . . . Combat Hostiles . | . . . . . Parts Fried . | . . . . . Impact Corruptions 2 | . . . . 2 Robots Melted . | . . . . . Combat Hostiles . | . . . . . Parts Melted 1 | . . . . 1 Heat Transferred 50 | 50 . . . . Parts Sabotaged . | . . . . . Parts Stolen 6 | . . . . 6 Parts Stripped . | . . . . . Power Chain Reactions 1 | 1 . . . . Alert | -11 -10 -10 -9 -9 ------- Run | Yrd Mat Sub Rec Scr Maximum Alert Level . | . . . . . Low Security (%) 100 | 100 100 . 100 . Level 1 . | . . . . . Level 2 . | . . . . . Level 3 . | . . . . . Level 4 . | . . . . . Level 5 . | . . . . . High Security . | . . . . . Max Security . | . . . . . Peak Influence 189 | 5 189 . 29 . Initial . | . . . . . Average 21 | . 43 . 2 . Influence Increases 496 | 10 326 60 100 . Destroy 0b10 Robot/C 320 | . 200 60 60 . Destroy 0b10 Robot/NC 30 | 10 5 . 15 . Destroy Leader 40 | . 40 . . . Allied During Kill 6 | . . . 6 . Successful Hack 36 | . 27 . 9 . Disable Machine 30 | . 30 . . . Destroy Structure 34 | . 24 . 10 . Influence Decreases 496 | 10 326 60 100 . Time Decay 496 | 10 326 60 100 . Squads Dispatched . | . . . . . Investigation . | . . . . . Extermination . | . . . . . Reinforcement . | . . . . . Assault . | . . . . . Garrison . | . . . . . Intercept . | . . . . . Searches Triggered . | . . . . . Construction Impeded . | . . . . . Haulers Reinforced . | . . . . . Active Scanning Responses . | . . . . . Cargo Convoy Interrupts . | . . . . . Stealth | -11 -10 -10 -9 -9 --------- Run | Yrd Mat Sub Rec Scr Distress Signals 2 | . 2 . . . Communications Jammed . | . . . . . Distress Signals . | . . . . . Times Spotted 97 | . 21 12 3 61 Peak Tracking Total 23 | . 4 5 1 23 Tactical Retreats 2 | . . . . 2 Traps | -11 -10 -10 -9 -9 ------- Run | Yrd Mat Sub Rec Scr Traps Triggered . | . . . . . Indirectly . | . . . . . Trap Hack Attempts . | . . . . . Triggered . | . . . . . Disarmed . | . . . . . Reprogrammed . | . . . . . Reused . | . . . . . Traps Extracted . | . . . . . Installed . | . . . . . Triggered . | . . . . . Machines | -11 -10 -10 -9 -9 ---------- Run | Yrd Mat Sub Rec Scr Machines Disabled 10 | . 2 . . 8 Max in Single Turn 2 | . 2 . . 1 Machines Repaired . | . . . . . Machines Dismantled . | . . . . . Machines Sabotaged . | . . . . . Overloaded Fab Kills . | . . . . . Hacking | -11 -10 -10 -9 -9 --------- Run | Yrd Mat Sub Rec Scr Machines Accessed 15 | . 7 . 8 . Terminals 11 | . 6 . 5 . Fabricators . | . . . . . Repair Stations 1 | . 1 . . . Recycling Units 3 | . . . 3 . Scanalyzers . | . . . . . Garrison Access . | . . . . . Total Hacks 38 | . 18 . 20 . Successful 15 | . 9 . 6 . Failed 23 | . 9 . 14 . Catastrophic 1 | . . . 1 . Database Lockouts . | . . . . . Manual 5 | . 5 . . . Terminals 30 | . 16 . 14 . Fabricators . | . . . . . Repair Stations 2 | . 2 . . . Recycling Units 6 | . . . 6 . Scanalyzers . | . . . . . Garrison Access . | . . . . . Terminal Hacks 10 | . 7 . 3 . Part Schematic 1 | . . . 1 . Robot Analysis 2 | . 1 . 1 . Prototype ID Bank 3 | . 2 . 1 . Repair Station Index 1 | . 1 . . . Locate Traps 2 | . 2 . . . Zone Layout 1 | . 1 . . . Fabricator Hacks . | . . . . . Repair Station Hacks 2 | . 2 . . . Scan Component 1 | . 1 . . . Repair 1 | . 1 . . . Recycling Unit Hacks 3 | . . . 3 . Retrieve Components 3 | . . . 3 . Scanalyzer . | . . . . . Garrison Access Hacks . | . . . . . Unauthorized Hacks . | . . . . . Terminals . | . . . . . Fabricators . | . . . . . Repair Stations . | . . . . . Recycling Units . | . . . . . Scanalyzers . | . . . . . Garrison Access . | . . . . . Data Cores Recovered . | . . . . . Used . | . . . . . Hacking Detections 11 | . 5 . 6 . Full Trace Events . | . . . . . Feedback Events . | . . . . . Feedback Blocked . | . . . . . Robot Schematics Acquired . | . . . . . Robots Built . | . . . . . Authchips . | . . . . . Time . | . . . . . Total Robot Build Rating . | . . . . . Part Schematics Acquired 1 | . . . 1 . Parts Built . | . . . . . Authchips . | . . . . . Time . | . . . . . Total Part Build Rating . | . . . . . Part Studies Acquired . | . . . . . Parts Repaired . | . . . . . Time 26 | . 26 . . . Parts Recycled . | . . . . . Recycled Matter . | . . . . . Retrieved Matter . | . . . . . Retrieved Components 5 | . . . 5 . Parts Scanalyzed . | . . . . . Part Schematics Acquired . | . . . . . Parts Damaged . | . . . . . Bothacking | -11 -10 -10 -9 -9 ------------ Run | Yrd Mat Sub Rec Scr Used RIF Installer . | . . . . . Robots Hacked . | . . . . . Non-combat . | . . . . . Combat . | . . . . . Robot Hacks Applied . | . . . . . Relay Couplers Released . | . . . . . Fabnet Peak Effective % . | . . . . . Robots Rewired 7 | . . . 7 . Allies Hacked . | . . . . . Hacks Repelled . | . . . . . Allies | -11 -10 -10 -9 -9 -------- Run | Yrd Mat Sub Rec Scr Total Allies 11 | . . . 7 4 Largest Group 7 | . . . 7 5 Highest-Rated Group 477 | . . . 71 477 Highest-Rated Ally 446 | . . . 27 446 Total Orders . | . . . . . Ally Attacks 136 | . . . 1 135 Total Damage 8364 | . . . . 8364 Kills 51 | . . . . 51 Allies Corrupted . | . . . . . Allies Melted . | . . . . . X0-1V1 Amusement Gains 99 | . 4 . . 95 Good Acts 9 | . . 1 5 3 Bad Acts 7 | . . 3 3 1 Intel | -11 -10 -10 -9 -9 ------- Run | Yrd Mat Sub Rec Scr Active Infowar (turns) 1466 | 19 1447 . . . Seismic 1466 | 19 1447 . . . Robot Analysis Total 2 | . 1 . 1 . Derelict Logs Recovered . | . . . . . Drone Launches . | . . . . . Drone Recoveries . | . . . . . Exploration | -11 -10 -10 -9 -9 ------------- Run | Yrd Mat Sub Rec Scr Turns Passed 4951 | 98 1473 760 1499 1121 Spaces Moved 2738 | 50 857 395 818 618 Core 8 | 4 . . . 4 Treads 2606 | 46 857 328 818 557 Legs 51 | . . . . 51 Wheels 6 | . . . . 6 Hover . | . . . . . Flight 67 | . . 67 . . Fastest Speed 50 | 50 160 160 160 80 Average Speed 161 | 151 160 178 160 157 Slowest Speed 350 | 160 160 272 160 350 Overloaded Moves . | . . . . . Propulsion Burnouts . | . . . . . Robots Hopped . | . . . . . Potential Cave-ins . | . . . . . Cave-ins Triggered . | . . . . . Exploration Rate (%) 56 | 4 99 32 99 49 Regions Visited 4 Branch Regions 3 Pre-discovered Areas . | . . . . . Known Exits Taken . | . . . . . Unknown Exits Taken 4 | 1 1 1 1 . Scrap Searched 2 | . . 1 . 1 Spaces Dug . | . . . . . Terrain Destroyed 118 | 7 22 2 11 76 Melee . | . . . . . Projectile 4 | . . 2 2 . AOE 114 | 7 22 . 9 76 Terrain Rammed . | . . . . . Walls Destroyed . | . . . . . Machines Disabled . | . . . . . Actions | -11 -10 -10 -9 -9 --------- Run | Yrd Mat Sub Rec Scr Total 3125 | 65 923 426 988 723 Wait 127 | 3 25 5 52 42 Move 2734 | 49 856 394 817 618 Hop . | . . . . . Pick Up 29 | 4 11 4 7 3 Fast Attach 17 | 7 1 1 . 8 Attach 14 | . . 1 3 10 Detach 2 | . . . . 2 Swap 20 | . 9 4 6 1 Drop 19 | . 2 5 7 5 Fire 73 | 2 19 12 11 29 Melee 5 | . . . . 5 Ram . | . . . . . Kick . | . . . . . Crush . | . . . . . Escape Stasis . | . . . . . Rewire 85 | . . . 85 . Trap . | . . . . . Miscellaneous . | . . . . . Route ------- -11/Scrapyard -10/Materials (discovered 5 exits: [*Mat x3] / [*Min] / [*Sub]) -10/Subcaves (discovered 2 exits: *Rec / [Scr]) -9/Recycling (discovered 2 exits: [*Fac] / [*Scr]) -9/Scraptown (discovered 1 exit: [*Fac]) History --------- Turn | Location | Event 13 | -11/Scrapyard | Discovered new exit (range 15) 99 | -11/Scrapyard | Entered Materials 100 | -10/Materials | Met a group of wandering Federalists 158 | -10/Materials | Discovered new exit (range 12) 201 | -10/Materials | Discovered new exit (range 3) 260 | -10/Materials | Discovered new exit (range 14) 310 | -10/Materials | Build established: Mutant 426 | -10/Materials | Discovered new exit (range 10) 676 | -10/Materials | Discovered new exit (range 15) 1553 | -10/Materials | Prayed at D.C.S.S. Altar Unit 1572 | -10/Materials | Entered Subcaves 1573 | -10/Subcaves | Continued accompanying wandering Federalists (5) 1573 | -10/Subcaves | Approached by a straggling Scientist 1632 | -10/Subcaves | A Subdweller sparked back to life 1632 | -10/Subcaves | A Subdweller sparked back to life 1632 | -10/Subcaves | A Subdweller sparked back to life 1666 | -10/Subcaves | Lost 4 allies 1999 | -10/Subcaves | X0-1V1 sent hostile G-34 Mercenary (x3) 2314 | -10/Subcaves | Discovered new exit (range 7) 2314 | -10/Subcaves | X0-1V1 sent you into danger 2332 | -10/Subcaves | Entered Recycling 2333 | -9/Recycling | Core integrity fell below 50% 2338 | -9/Recycling | Melee accuracy permanently improved by X0-1V1 (+5%; -50 max core) 2361 | -9/Recycling | Lost 3 parts (1p1n1w) 2442 | -9/Recycling | Weapon slot count permanently improved by X0-1V1 (+1) 2738 | -9/Recycling | Build established: Gunner 2756 | -9/Recycling | Discovered new exit (range 15) 3207 | -9/Recycling | Core integrity permanently improved by X0-1V1 (+300) 3421 | -9/Recycling | Build established: Commander-Gunner 3778 | -9/Recycling | Scanned before Scraplab entrance 3819 | -9/Recycling | Discovered new exit (range 2) 3831 | -9/Recycling | Entered Scraptown 3831 | -9/Scraptown | Accompanied by 5 allies 4121 | -9/Scraptown | Build established: Commander-Mutant 4205 | -9/Scraptown | Discovered new exit (range 5) 4327 | -9/Scraptown | Visited IN-MT5's Study 4349 | -9/Scraptown | Visited SPCMW 4420 | -9/Scraptown | Visited CPS Storage 4473 | -9/Scraptown | Visited Shadow of the Wyrm 4482 | -9/Scraptown | X0-1V1 brought Wyrm Statue to life 4482 | -9/Scraptown | Attacked by Scraptown defenders 4519 | -9/Scraptown | Lost 5 allies 4540 | -9/Scraptown | Lost 3 parts (2p1n) 4644 | -9/Scraptown | Allies destroyed Triborg 4789 | -9/Scraptown | Build established: Mutant 4827 | -9/Scraptown | Core integrity fell below 20% 4829 | -9/Scraptown | X0-1V1 rescued you from certain death 4847 | -9/Scraptown | Lost 8 parts (1p4n1u2w) 4943 | -9/Scraptown | X0-1V1 sent allied S-10 Pest (x3) 4952 | -9/Scraptown | Destroyed by 94-3M3(E) with Barrage Gun Last Messages --------------- 04946_ Penetrated by Slug. 04946_ Wheel destroyed. 04946_ Slug penetrates Earth. 04946_ Acquired Wheel. 04947_ BX-1P7(x) destroyed. 04947_ S-10 Pest destroyed. 04948_ Penetrated by Slug. 04948_ Slug penetrates Earth. 04948_ Acquired 10 matter. 04949_ CB-3MX(j) heat spikes uncontrollably. 04949_ S-10 Pest destroyed. 04949_ Wheel destroyed. 04949_ N8-KV4(r) suffers critical hit (Smash). 04949_ Destroyed Rocket Booster. 04949_ Destroyed Wheel. 04949_ N8-KV4(r) system corrupted by crushing effect. 04950_ Slug penetrates Earth. 04951_ N8-KV4(r) suffers critical hit (Destroy). 04952_ X0-1V1 snickers! Map ----- +----------------------------------------------------+ | # | | # | | # | | ###### ########### ##########"" """"##### | | ###### ######????## ##????????#" "#???? | | #""""" """""#####?# #########?#" ""#???? | | #" " " #?# """"""""#?#" """#???? | | "" ""#" " " "### ### " ""#?#" """#???? | | "" "#" " " "#"" """ "#?#"""""""#???? | | "" "#""""" """""#" "" " ""#?#######?????? | | " "###### ######" " """"""""#?????????????? | | "#""""" """""#" ##"""####???????####### | | "" ""#" " " "#" "" ! ###########??# | | ## ###" " " "#" ![%= ?#"""""""#?# """""" | | ?# " " "#""" =%[ ##?" " "#?# "" " | | ?#####""""" """""###### != ###" "#?# " | | ?????###### ######?## #!%! " ""#?# " | | ########### ######## ## [ # " """#?# " | | [%%[ ""#?# " | | != =# # " "#?# "" " | | #################### # !! #" #?# """""" | | ????????????????????# #### | | ######??????????????## # ;;; ;;"###" # # | | """""#??????????????## = | | "#?????########## = %= | | = "#???### @ =!% [!! | | != "#???# ; s r *%!= =! =%! | | ! "#???# ; ; ! ! /% | | ] "#????## / # ###### # ## = | | !=! "#?????# /! ### ## #### #[%[! | | ]/ "#?????# # # ## #[!=% | | "#?????# ## # %[! | | "" ""#?????# %= ### # ! = | | ## ###?????# =% ###### ![= | | ## ###?????######## ## x%[ #??# | | "" ""#????????????### !%= [ ###??# | | "#?????????????## ! g !%[ #????## | | "" "#??????????????## %%3j #?????# | | "" "#??????######???# =j ## #### ###?????# | | "#??????""""""???# !## ##??????# | | ""#?????"" "" ??# = # #####???????# | | """""#?????"" ??# ####???????????# | | """""#?????? ?# % #????????????# | | """"??????#"" "" " ?# #????????????# | | ####??????#" " # ##"############## | | ??????????#" # | | ???""??????"" " | | ?? "#?????"""" ""# | | ? "#??????"""""""""# | | "#????????######## | +----------------------------------------------------+ Best States ------------- Heat Dissipation 25 Energy Generation 12 Energy Capacity 265 Matter Stores 300 Matter Capacity 300 Sight Range 16 Terrain Scan Density 10 Evasion (%) 55 Recoil Reduction 2 Item Schematics ----------------- Imp. Melee Analysis Suite | -9/Recycling | Hacked Robot Schematics ------------------ None Fabricated ------------ Nothing Repaired ---------- Nothing Studied --------- None Alien Tech Used ----------------- None Achievements -------------- Chaos Is Inevitable Strength In Numbers You May Approach The Wall Challenges ------------ None Game ------ Seed ComponentAntisysChaingun Manual? 0 Play Time 00:56:29 Cumulative 152.7 hours Start 2026.06.27 @ 11:57:12 End 2026.06.27 @ 13:03:46 Sessions 1 Manual Loads 0 Difficulty Rogue Special Mode None Game No. 94 Rogue 93 Adventurer 1 Explorer 0 Win Type - Total 0 Types 0/0/0/0/0/0/0/0/0/0 Lore% 55 Gallery% 44 Achievement% 27 Wizard Run 0 Options --------- Layout 1 ASCII 0 Keyboard 0 Movement Numpad Keybinds 0 Fullscreen 1 Font 24/Smallcaps Map View 50x35 Zoom Use 0% Tactical HUD 1 Map Filters NONE Filters NONE Steam 1 RUN: 817e580f-a09e-4b74-b8b8-3cb9b7e0989a